bitfinex-derivatives/quotes_BTCF0:USTF0_20251002
["timestamp","ask_amount","ask_price","bid_price","bid_amount"]
[1759425637195,3.17560617,119560.0,119550.0,0.97191308]
[1759425637402,3.28053384,119560.0,119550.0,0.97191308]
[1759425637805,0.72168617,119560.0,119550.0,1.05551008]
[1759425638107,1.47960617,119560.0,119550.0,0.97191308]
[1759425638399,1.47968617,119560.0,119550.0,1.05551008]
[1759425639006,0.36088617,119560.0,119550.0,0.73151873]
[1759425639304,1.20247627,119560.0,119550.0,1.05551008]
[1759425639503,1.20247627,119560.0,119550.0,0.97191308]
[1759425639898,1.21071631,119560.0,119550.0,0.97191308]
[1759425641089,0.45271631,119560.0,119550.0,0.97191308]
[1759425641291,1.21067631,119560.0,119550.0,0.97191308]
[1759425641697,1.21063631,119560.0,119550.0,0.97191308]
[1759425641904,1.21063631,119560.0,119550.0,1.37950143]
[1759425642203,1.20239627,119560.0,119550.0,1.37950143]
[1759425642401,1.20239627,119560.0,119550.0,0.65551008]
[1759425642602,0.44447627,119560.0,119550.0,0.65551008]
[1759425643002,1.20243627,119560.0,119550.0,0.97950143]
[1759425643700,0.44447627,119560.0,119550.0,0.97950143]
[1759425644102,0.75792,119560.0,119550.0,0.65551008]
[1759425644409,0.4527031,119570.0,119560.0,0.12603]
[1759425644608,1.2320526,119570.0,119560.0,0.66002135]
[1759425644806,1.2320526,119570.0,119560.0,1.06002135]
[1759425645099,1.23212498,119570.0,119560.0,0.97643135]
[1759425646105,0.47420498,119570.0,119560.0,0.97643135]
[1759425646307,1.23204498,119570.0,119560.0,0.97643135]
[1759425648103,0.47420498,119570.0,119560.0,1.06002145]
[1759425648405,1.23204498,119570.0,119560.0,1.06002145]
[1759425649605,1.23200498,119570.0,119560.0,1.06002145]
[1759425651003,0.46589118,119570.0,119560.0,1.06002145]
[1759425651206,0.42343,119570.0,119560.0,1.06002145]
[1759425651412,0.7792807,119570.0,119560.0,1.42082145]
[1759425651709,0.8628637,119570.0,119560.0,1.06002145]
[1759425653607,0.88716451,119570.0,119560.0,0.7199001]
[1759425653808,0.88716451,119570.0,119560.0,1.04389145]
[1759425654000,1.27413451,119570.0,119560.0,0.56030135]
[1759425654411,1.27413451,119570.0,119560.0,0.64389055]
[1759425654607,0.47426451,119570.0,119560.0,1.04389055]
[1759425654807,1.14860151,119570.0,119560.0,1.04389055]
[1759425655301,0.3823607,119570.0,119560.0,1.04389055]
[1759425655501,1.2681535,119570.0,119560.0,0.64389055]
[1759425655707,1.2681535,119570.0,119560.0,1.04389055]
[1759425655913,1.2681535,119570.0,119560.0,0.7198992]
[1759425656215,1.2681535,119570.0,119560.0,0.64389055]
[1759425656608,1.27671061,119570.0,119560.0,0.64389055]
[1759425657412,1.23266061,119570.0,119560.0,0.64389055]
[1759425657811,0.3823607,119570.0,119560.0,1.04389055]
[1759425658114,0.7798807,119570.0,119560.0,1.7286819]
[1759425658307,0.7798807,119570.0,119560.0,1.40469055]
[1759425658703,0.8239307,119570.0,119560.0,0.7198992]
[1759425658907,0.81034196,119570.0,119560.0,1.04389055]
[1759425659310,0.89404476,119570.0,119560.0,1.04389055]
[1759425660013,1.25490887,119570.0,119560.0,1.04389055]
[1759425660217,1.25490887,119570.0,119560.0,1.368773]
[1759425660408,1.25490887,119570.0,119560.0,0.968773]
[1759425661810,1.25490907,119570.0,119560.0,0.968773]
[1759425662415,0.38507607,119570.0,119560.0,0.968773]
[1759425662614,1.14343607,119570.0,119560.0,0.968773]
[1759425662816,1.12719607,119570.0,119560.0,0.968773]
[1759425663609,0.81044607,119570.0,119560.0,0.968773]
[1759425664010,0.78263607,119570.0,119560.0,0.968773]
[1759425664216,0.76639607,119570.0,119560.0,0.968773]
[1759425664516,0.81044607,119570.0,119560.0,0.968773]
[1759425665219,0.78263607,119570.0,119560.0,0.968773]
[1759425666019,0.89402907,119570.0,119560.0,0.968773]
[1759425666217,0.05208607,119570.0,119560.0,0.968773]
[1759425666418,0.81040607,119570.0,119560.0,0.968773]
[1759425666613,0.05208607,119570.0,119560.0,0.968773]
[1759425667020,0.80235411,119570.0,119560.0,0.968773]
[1759425667215,0.75826411,119570.0,119560.0,1.2932099]
[1759425667512,0.75826411,119570.0,119560.0,1.6932099]
[1759425667924,0.75826411,119570.0,119560.0,1.368773]
[1759425668423,6.411e-05,119570.0,119560.0,1.6932099]
[1759425668609,0.75826411,119570.0,119560.0,1.6932099]
[1759425668812,0.75826411,119570.0,119560.0,1.368773]
[1759425669410,0.75826411,119570.0,119560.0,1.0443361]
[1759425669617,0.75826411,119570.0,119560.0,0.7198992]
[1759425669817,0.75826411,119570.0,119560.0,1.6932099]
[1759425670017,0.75826411,119570.0,119560.0,1.368773]
[1759425670522,0.77450411,119570.0,119560.0,1.368773]
[1759425672017,0.77450411,119570.0,119560.0,0.7198992]
[1759425672217,0.75826411,119570.0,119560.0,1.368773]
[1759425672417,0.75826411,119570.0,119560.0,1.6932099]
[1759425673423,0.74467522,119570.0,119560.0,1.6932099]
[1759425674022,0.4443795,119580.0,119570.0,0.105903]
[1759425674317,1.22348911,119580.0,119570.0,0.9647768]
[1759425674623,1.2022995,119580.0,119570.0,0.9647768]
[1759425675014,1.2185395,119580.0,119570.0,0.9647768]
[1759425675922,1.2463495,119580.0,119570.0,0.9647768]
[1759425676424,1.2463495,119580.0,119570.0,0.315903]
[1759425676724,1.2463495,119580.0,119570.0,0.6403399]
[1759425679518,1.26754927,119580.0,119570.0,0.6403399]
[1759425680517,0.50962927,119580.0,119570.0,0.6403399]
[1759425680717,1.26738927,119580.0,119570.0,0.6403399]
[1759425684327,1.26738927,119580.0,119570.0,0.21]
[1759425684529,1.59182617,119580.0,119570.0,0.6180199]
[1759425685529,2.31626307,119580.0,119570.0,0.21]
[1759425685830,1.68970169,119580.0,119570.0,0.16759]
[1759425686028,2.33857549,119580.0,119570.0,0.16759]
[1759425686623,1.58081549,119580.0,119570.0,0.16759]
[1759425686829,3.71037859,119580.0,119570.0,0.5186569]
[1759425687028,3.71037859,119580.0,119570.0,0.19422]
[1759425687330,3.71037859,119580.0,119570.0,0.16759]
[1759425687331,3.68806617,119580.0,119570.0,0.16759]
[1759425687527,3.71037859,119580.0,119570.0,0.4920269]
[1759425687926,4.03481549,119580.0,119570.0,0.16759]
[1759425688425,1.58081549,119580.0,119570.0,0.16759]
[1759425688621,4.03485549,119580.0,119570.0,0.16759]
[1759425689732,3.30252219,119580.0,119570.0,0.4920269]
[1759425689934,3.95139599,119580.0,119570.0,0.16759]
[1759425691733,1.49723599,119580.0,119570.0,0.16759]
[1759425691932,3.95139599,119580.0,119570.0,0.16759]
[1759425692331,1.49723599,119580.0,119570.0,0.16759]
[1759425692530,3.95131599,119580.0,119570.0,0.16759]
[1759425693435,3.98091024,119580.0,119570.0,0.16759]
[1759425694329,3.98094774,119580.0,119570.0,0.16759]
[1759425694534,4.32778729,119580.0,119570.0,0.08287]
[1759425694733,3.97375614,119580.0,119570.0,0.08287]
[1759425695121,4.05733214,119580.0,119570.0,0.08287]
[1759425695325,1.60325214,119580.0,119570.0,0.08287]
[1759425695633,4.05761214,119580.0,119570.0,0.08287]
[1759425697533,0.0835944,119560.0,119550.0,0.01355213]
[1759425697736,1.49761017,119560.0,119550.0,0.21355213]
[1759425697930,3.62757327,119560.0,119550.0,0.56461903]
[1759425698232,3.62757327,119560.0,119550.0,0.24018213]
[1759425698431,3.62769327,119560.0,119550.0,0.24018213]
[1759425698635,1.17317327,119560.0,119550.0,0.24018213]
[1759425698821,3.62769327,119560.0,119550.0,0.24018213]
[1759425699436,3.60535107,119560.0,119550.0,0.24018213]
[1759425699822,3.92978797,119560.0,119550.0,0.21355213]
[1759425700030,4.35213017,119560.0,119550.0,0.21355213]
[1759425700228,1.89761017,119560.0,119550.0,0.21355213]
[1759425700533,4.38191977,119560.0,119550.0,0.21355213]
[1759425700924,1.92739977,119560.0,119550.0,0.21355213]
[1759425701327,0.0835963,119550.0,119490.0,0.0836332]
[1759425701530,0.3608,119510.0,119500.0,0.4513378]
[1759425701728,1.11984,119510.0,119500.0,0.8721438]
[1759425702326,2.20506295,119510.0,119500.0,0.20829952]
[1759425702527,1.20879969,119510.0,119500.0,0.20829952]
[1759425702732,3.66459969,119510.0,119500.0,0.23492952]
[1759425703230,3.66459969,119510.0,119500.0,0.22327]
[1759425703435,1.2171505,119510.0,119500.0,0.22327]
[1759425703635,3.6730706,119510.0,119500.0,0.5477069]
[1759425703831,3.6730706,119510.0,119500.0,0.22327]
[1759425704229,0.8927137,119510.0,119500.0,0.5477069]
[1759425704535,3.6518667,119510.0,119500.0,0.22327]
[1759425705436,3.3274298,119510.0,119500.0,0.22327]
[1759425705637,3.6518667,119510.0,119500.0,0.22327]
[1759425706140,3.9763036,119510.0,119500.0,0.22327]
[1759425706438,4.39755304,119510.0,119500.0,0.19664]
[1759425707031,4.72198994,119510.0,119500.0,0.19664]
[1759425707334,4.74431663,119510.0,119500.0,0.17774336]
[1759425707635,4.74431663,119510.0,119500.0,0.01664]
[1759425708231,4.17732156,119510.0,119500.0,0.01664]
[1759425708933,0.0836316,119500.0,119490.0,0.01664]
[1759425709126,0.87210111,119500.0,119490.0,0.06664]
[1759425709332,1.27207251,119500.0,119490.0,0.06664]
[1759425709727,3.32247688,119500.0,119490.0,0.06664]
[1759425709938,3.72891251,119500.0,119490.0,0.06664]
[1759425711327,2.92271688,119500.0,119490.0,0.06664]
[1759425711528,3.32903251,119500.0,119490.0,0.09327]
[1759425713235,3.32903251,119500.0,119490.0,0.06664]
[1759425713640,0.87207251,119500.0,119490.0,0.06664]
[1759425713842,0.46575688,119500.0,119490.0,0.09327]
[1759425714039,3.32923251,119500.0,119490.0,0.09327]
[1759425714339,2.92291688,119500.0,119490.0,0.09327]
[1759425714537,3.32923251,119500.0,119490.0,0.09327]
[1759425714736,0.87207251,119500.0,119490.0,0.09327]
[1759425714937,3.32931251,119500.0,119490.0,0.09327]
[1759425716142,0.38212528,119500.0,119490.0,0.09327]
[1759425716345,2.83936528,119500.0,119490.0,0.09327]
[1759425716642,3.24576091,119500.0,119490.0,0.09327]
[1759425717044,3.32939231,119500.0,119490.0,0.09327]
[1759425718043,3.32943231,119500.0,119490.0,0.09327]
[1759425718241,0.0836429,119490.0,119470.0,0.03378]
[1759425718441,1.88771563,119480.0,119470.0,0.21378]
[1759425719345,3.1792,119480.0,119470.0,0.2974325]
[1759425719648,3.58551563,119480.0,119470.0,0.2974325]
[1759425720346,3.66916113,119480.0,119470.0,0.21378]
[1759425721542,3.2628455,119480.0,119470.0,0.21378]
[1759425721742,0.7216,119480.0,119470.0,0.2974324]
[1759425722045,1.48184,119480.0,119470.0,0.6974324]
[1759425722247,1.91887675,119480.0,119470.0,0.18665]
[1759425722442,1.94009251,119480.0,119470.0,0.18665]
[1759425724441,1.96230735,119480.0,119470.0,0.18665]
[1759425726347,1.20206735,119480.0,119470.0,0.18665]
[1759425726548,3.66026735,119480.0,119470.0,0.21378]
[1759425726745,3.66026735,119480.0,119470.0,0.18665]
[1759425727244,1.20206735,119480.0,119470.0,0.21378]
[1759425727452,3.66026735,119480.0,119470.0,0.21378]
[1759425727645,3.66030735,119480.0,119470.0,0.18665]
[1759425728944,1.20206735,119480.0,119470.0,0.18665]
[1759425729149,3.66034735,119480.0,119470.0,0.21378]
[1759425729350,3.66792211,119480.0,119470.0,0.18665]
[1759425730543,1.20964211,119480.0,119470.0,0.18665]
[1759425730848,3.66788211,119480.0,119470.0,0.14925]
[1759425731152,0.0836663,119450.0,119440.0,0.04277]
[1759425731452,1.96271698,119450.0,119440.0,0.23277]
[1759425731844,3.69072177,119450.0,119440.0,0.23277]
[1759425732045,3.72679256,119450.0,119440.0,0.23277]
[1759425732450,1.26787256,119450.0,119440.0,0.23277]
[1759425732638,3.72683256,119450.0,119440.0,0.23277]
[1759425732844,1.26787256,119450.0,119440.0,0.23277]
[1759425733043,3.64312626,119450.0,119440.0,0.23277]
[1759425733248,3.72679256,119450.0,119440.0,0.23277]
[1759425733449,3.73422376,119450.0,119440.0,0.23277]
[1759425733949,3.73430376,119450.0,119440.0,0.23277]
[1759425734149,3.74266194,119450.0,119440.0,0.23277]
[1759425734553,3.74262194,119450.0,119440.0,0.23277]
[1759425734745,3.74270194,119450.0,119440.0,0.23277]
[1759425736353,3.38936071,119450.0,119440.0,0.63277]
[1759425737451,3.74266204,119450.0,119440.0,0.63277]
[1759425737648,3.38936071,119450.0,119440.0,0.63277]
[1759425737849,3.74266204,119450.0,119440.0,0.63277]
[1759425738649,3.38936071,119450.0,119440.0,0.63277]
[1759425738849,3.74266204,119450.0,119440.0,0.63277]
[1759425740050,3.38936071,119450.0,119440.0,0.63277]
[1759425740444,0.8689957,119450.0,119440.0,0.63277]
[1759425740647,0.83927091,119450.0,119440.0,0.63277]
[1759425740852,1.60007091,119450.0,119440.0,1.06974423]
[1759425741050,1.60007091,119450.0,119440.0,0.7164429]
[1759425742053,1.60007091,119450.0,119440.0,0.63277]
[1759425742458,0.09536952,119450.0,119440.0,1.06974383]
[1759425742657,0.85616952,119450.0,119440.0,1.06974383]
[1759425743048,0.85616952,119450.0,119440.0,0.7164425]
[1759425743853,0.93983502,119450.0,119440.0,0.63277]
[1759425744055,1.30063502,119450.0,119440.0,0.63277]
[1759425744554,1.30171502,119450.0,119440.0,0.7164425]
[1759425744853,1.21804952,119450.0,119440.0,0.7164425]
[1759425745651,0.45616952,119450.0,119440.0,0.7164425]
[1759425745957,0.85720952,119450.0,119440.0,1.06974383]
[1759425746159,0.08701134,119450.0,119440.0,1.06974383]
[1759425746456,0.84881134,119450.0,119440.0,1.06974383]
[1759425748352,0.84873134,119450.0,119440.0,1.43054383]
[1759425748560,0.79164904,119450.0,119440.0,1.43054383]
[1759425748760,0.74816904,119450.0,119440.0,1.43054383]
[1759425748951,0.0085358,119460.0,119450.0,0.1289858]
[1759425749259,0.5346436,119470.0,119460.0,0.1289788]
[1759425749556,1.2963236,119470.0,119460.0,0.69228013]
[1759425749853,0.06795862,119470.0,119460.0,1.09228013]
[1759425750057,0.82959862,119470.0,119460.0,1.09228013]
[1759425750252,0.76171281,119470.0,119460.0,1.09228013]
[1759425750851,0.76171281,119470.0,119460.0,1.45308013]
[1759425751056,0.02230139,119480.0,119470.0,0.0836514]
[1759425751254,0.77024935,119480.0,119470.0,1.01307273]
[1759425751451,0.00856935,119480.0,119470.0,1.01307273]
[1759425751656,0.46674209,119490.0,119480.0,0.1289644]
[1759425751855,0.49452209,119490.0,119480.0,0.3089644]
[1759425752058,1.26461926,119490.0,119480.0,0.3089644]
[1759425752257,1.24231787,119490.0,119480.0,0.3089644]
[1759425753147,1.28197075,119490.0,119480.0,0.3089644]
[1759425753352,0.43665005,119490.0,119480.0,1.06226573]
[1759425753550,1.28184785,119490.0,119480.0,1.06226573]
[1759425753749,1.30962785,119490.0,119480.0,0.62532]
[1759425754150,1.30962785,119490.0,119480.0,0.7089648]
[1759425755553,1.28184785,119490.0,119480.0,0.7089648]
[1759425755856,1.19821005,119490.0,119480.0,0.7089648]
[1759425756159,1.28180785,119490.0,119480.0,1.06226613]
[1759425756660,1.28168785,119490.0,119480.0,1.06226613]
[1759425758156,0.54806785,119490.0,119480.0,0.7089648]
[1759425758358,1.30930785,119490.0,119480.0,0.7089648]
[1759425759154,1.30930785,119490.0,119480.0,0.71818544]
[1759425761261,1.30930785,119490.0,119480.0,1.07148677]
[1759425761962,1.30930785,119490.0,119480.0,0.71818544]
[1759425762362,1.30930785,119490.0,119480.0,0.31818544]
[1759425762661,1.28152785,119490.0,119480.0,0.31818544]
[1759425763262,1.30930785,119490.0,119480.0,0.67148677]
[1759425764054,1.30930785,119490.0,119480.0,0.31818544]
[1759425764866,1.30930785,119490.0,119480.0,0.67148677]
[1759425765563,0.43665005,119490.0,119480.0,0.67148677]
[1759425765763,1.19745005,119490.0,119480.0,0.67148677]
[1759425766164,0.43665005,119490.0,119480.0,0.67148677]
[1759425766556,1.18899948,119490.0,119480.0,0.67148677]
[1759425766764,1.30041738,119490.0,119480.0,0.23454064]
[1759425767057,1.31242738,119490.0,119480.0,0.18922064]
[1759425767369,2.08695812,119490.0,119480.0,0.18922064]
[1759425767865,2.09527401,119490.0,119480.0,0.18922064]
[1759425768260,2.06701132,119490.0,119480.0,0.18922064]
[1759425769163,2.06701132,119490.0,119480.0,0.21797064]
[1759425769764,2.06701132,119490.0,119480.0,0.22431294]
[1759425770272,2.08931271,119490.0,119480.0,0.19556294]
[1759425770766,2.41435135,119490.0,119480.0,0.19556294]
[1759425774782,1.76427407,119490.0,119480.0,0.19556294]
[1759425775077,2.41435135,119490.0,119480.0,0.19556294]
[1759425777081,2.44407614,119490.0,119480.0,0.15208294]
[1759425777285,1.67591714,119490.0,119480.0,0.15208294]
[1759425777581,4.13407714,119490.0,119480.0,0.15208294]
[1759425777778,1.67591714,119490.0,119480.0,0.15208294]
[1759425777978,4.13403714,119490.0,119480.0,0.15208294]
[1759425778378,3.45714904,119490.0,119480.0,0.15208294]
[1759425778582,3.8267754,119490.0,119480.0,0.19460294]
[1759425778772,3.8267754,119490.0,119480.0,0.16850294]
[1759425778972,4.15181404,119490.0,119480.0,0.16850294]
[1759425779179,4.10722686,119490.0,119480.0,0.16850294]
[1759425779782,3.45714958,119490.0,119480.0,0.16850294]
[1759425779974,4.10722686,119490.0,119480.0,0.16850294]
[1759425780179,4.10722686,119490.0,119480.0,0.15208294]
[1759425780583,4.10722686,119490.0,119480.0,0.15322489]
[1759425782285,4.10727228,119490.0,119480.0,0.15322489]
[1759425782483,4.10727228,119490.0,119480.0,0.16964489]
[1759425783584,4.12203256,119490.0,119480.0,0.16964489]
[1759425785093,4.12203256,119490.0,119480.0,0.15322489]
[1759425787886,3.36187256,119490.0,119480.0,0.15322489]
[1759425788089,4.12187256,119490.0,119480.0,0.15322489]
[1759425789589,4.13703996,119490.0,119480.0,0.11364529]
[1759425790094,4.07728538,119490.0,119480.0,0.07046529]
[1759425790290,4.13703996,119490.0,119480.0,0.07046529]
[1759425790489,4.13699996,119490.0,119480.0,0.07046529]
[1759425791192,4.07724538,119490.0,119480.0,0.07046529]
[1759425792496,4.13699996,119490.0,119480.0,0.07046529]
[1759425793294,4.07724538,119490.0,119480.0,0.07046529]
[1759425793495,4.12197755,119490.0,119480.0,0.07046529]
[1759425793694,4.12201755,119490.0,119480.0,0.07046529]
[1759425793887,1.66409755,119490.0,119480.0,0.07046529]
[1759425794092,4.12201755,119490.0,119480.0,0.07046529]
[1759425794695,4.12197755,119490.0,119480.0,0.07046529]
[1759425797292,2.42405755,119490.0,119480.0,0.07046529]
[1759425797600,1.66409755,119490.0,119480.0,0.11298529]
[1759425797791,4.12185755,119490.0,119480.0,0.11298529]
[1759425797990,4.12185755,119490.0,119480.0,0.08688529]
[1759425799290,1.66409755,119490.0,119480.0,0.08688529]
[1759425799598,4.12177755,119490.0,119480.0,0.07046529]
[1759425799797,4.12177755,119490.0,119480.0,0.08688529]
[1759425799993,4.12177755,119490.0,119480.0,0.07046529]
[1759425800195,0.0836516,119470.0,119460.0,0.01642]
[1759425800399,2.28859243,119470.0,119460.0,0.19642]
[1759425800697,2.28859243,119470.0,119460.0,0.22252]
[1759425800698,2.28106248,119470.0,119460.0,0.22252]
[1759425801502,2.31091461,119470.0,119460.0,0.22252]
[1759425801693,2.31091461,119470.0,119460.0,0.19642]
[1759425801895,1.55123461,119470.0,119460.0,0.19642]
[1759425802095,4.00899461,119470.0,119460.0,0.22252]
[1759425802900,3.68393326,119470.0,119460.0,0.22252]
[1759425803094,1.55123461,119470.0,119460.0,0.22252]
[1759425803294,4.00899461,119470.0,119460.0,0.22252]
[1759425804996,1.55123461,119470.0,119460.0,0.22252]
[1759425805208,0.1215963,119510.0,119480.0,0.3608]
[1759425805399,0.02686,119530.0,119520.0,0.0836164]
[1759425805703,0.04355,119550.0,119540.0,0.01281]
[1759425805906,0.81679,119550.0,119540.0,1.16799405]
[1759425806199,0.04355,119550.0,119540.0,1.80362343]
[1759425806500,0.02518249,119560.0,119550.0,0.01281]
[1759425806702,0.05204249,119560.0,119550.0,1.01170451]
[1759425806998,0.13563089,119560.0,119550.0,0.98922103]
[1759425807198,0.05204249,119560.0,119550.0,0.98922103]
[1759425807506,0.20370166,119560.0,119550.0,0.5708]
[1759425808400,1.04507433,119560.0,119550.0,0.5708]
[1759425808598,0.6394633,119560.0,119550.0,0.5708]
[1759425808806,3.1103033,119560.0,119550.0,0.5708]
[1759425810202,3.51591433,119560.0,119550.0,0.5708]
[1759425810401,3.91591433,119560.0,119550.0,0.52776]
[1759425810706,4.32152536,119560.0,119550.0,0.48472]
[1759425810902,0.1271459,119550.0,119540.0,0.3608]
[1759425811102,0.63097801,119550.0,119540.0,0.5508]
[1759425811306,3.50686904,119550.0,119540.0,0.5508]
[1759425811901,3.50682904,119550.0,119540.0,0.5508]
[1759425812103,1.03658904,119550.0,119540.0,0.5508]
[1759425812301,3.50670904,119550.0,119540.0,0.5508]
[1759425813101,3.90670904,119550.0,119540.0,0.5508]
[1759425815703,3.50109801,119550.0,119540.0,0.5508]
[1759425815999,3.90670904,119550.0,119540.0,0.5508]
[1759425816399,1.43658904,119550.0,119540.0,0.5508]
[1759425816598,3.90582904,119550.0,119540.0,0.5508]
[1759425818401,3.90582904,119550.0,119540.0,0.19]
[1759425818607,0.04355,119530.0,119520.0,0.34116]
[1759425818806,1.80816314,119530.0,119520.0,0.29359441]
[1759425820003,1.3724015,119530.0,119520.0,0.29359441]
[1759425820204,1.80816314,119530.0,119520.0,0.29359441]
[1759425821010,1.03660314,119530.0,119520.0,0.29359441]
[1759425821220,3.50540314,119530.0,119520.0,0.29359441]
[1759425821416,1.03660314,119530.0,119520.0,0.29359441]
[1759425821602,3.50512314,119530.0,119520.0,0.29359441]
[1759425821915,3.09951211,119530.0,119520.0,0.29359441]
[1759425822110,3.50512314,119530.0,119520.0,0.29359441]
[1759425823212,3.57284831,119530.0,119520.0,0.32138441]
[1759425823815,3.57284831,119530.0,119520.0,0.29359441]
[1759425824510,2.39615728,119530.0,119520.0,0.32138441]
[1759425824712,1.94370564,119530.0,119520.0,0.7822059]
[1759425824912,2.71446564,119530.0,119520.0,0.7822059]
[1759425825108,0.16281564,119530.0,119520.0,0.7822059]
[1759425825308,2.63081564,119530.0,119520.0,1.1822059]
[1759425826016,2.73115554,119530.0,119520.0,0.77659487]
[1759425826316,2.73115554,119530.0,119520.0,0.75979487]
[1759425826516,3.13676657,119530.0,119520.0,0.89979487]
[1759425826715,3.57252821,119530.0,119520.0,0.28200487]
[1759425826912,3.57252821,119530.0,119520.0,0.29361941]
[1759425827107,3.57252821,119530.0,119520.0,0.30979487]
[1759425827713,1.10448821,119530.0,119520.0,0.30979487]
[1759425827914,3.57236821,119530.0,119520.0,0.30979487]
[1759425828214,0.69887718,119530.0,119520.0,0.32659487]
[1759425828517,3.16663718,119530.0,119520.0,0.46659487]
[1759425828914,3.16663718,119530.0,119520.0,0.44979487]
[1759425829413,0.69887718,119530.0,119520.0,0.44979487]
[1759425829613,3.16655718,119530.0,119520.0,0.44979487]
[1759425831017,3.57216821,119530.0,119520.0,0.44979487]
[1759425831314,3.57216821,119530.0,119520.0,0.43362692]
[1759425832219,3.14930718,119530.0,119520.0,0.47821692]
[1759425832417,3.14930718,119530.0,119520.0,0.46659487]
[1759425832718,0.69887718,119530.0,119520.0,0.46659487]
[1759425833116,3.16591718,119530.0,119520.0,0.46659487]
[1759425833721,3.16591718,119530.0,119520.0,0.44979487]
[1759425834125,0.69887718,119530.0,119520.0,0.44979487]
[1759425834517,3.16579718,119530.0,119520.0,0.44979487]
[1759425837624,3.16547718,119530.0,119520.0,0.44979487]
[1759425838126,3.19526604,119530.0,119520.0,0.44979487]
[1759425839019,1.8898845,119530.0,119520.0,0.817703]
[1759425839224,2.62925564,119530.0,119520.0,1.417703]
[1759425839422,0.16281564,119530.0,119520.0,1.417703]
[1759425839617,0.81941564,119530.0,119520.0,1.417703]
[1759425840017,0.90302584,119530.0,119520.0,0.92847487]
[1759425840218,0.92187584,119530.0,119520.0,0.90979487]
[1759425840520,1.79303737,119530.0,119520.0,0.48200487]
[1759425840916,1.18092513,119530.0,119520.0,0.48200487]
[1759425841118,3.64712513,119530.0,119520.0,0.48200487]
[1759425841720,3.64712513,119530.0,119520.0,0.48314653]
[1759425842320,3.59438826,119530.0,119520.0,0.48314653]
[1759425843425,3.16723748,119530.0,119520.0,0.48314653]
[1759425845030,3.16723748,119530.0,119520.0,0.51638653]
[1759425845623,0.70103748,119530.0,119520.0,0.51638653]
[1759425845931,3.08314728,119530.0,119520.0,0.53886666]
[1759425846326,3.16675748,119530.0,119520.0,0.53886666]
[1759425846632,3.16675748,119530.0,119520.0,0.5389529]
[1759425846938,0.70103748,119530.0,119520.0,0.51638653]
[1759425847230,3.16659748,119530.0,119520.0,0.51638653]
[1759425847631,3.16659748,119530.0,119520.0,0.31638653]
[1759425847833,3.16635748,119530.0,119520.0,0.31638653]
[1759425849935,2.73059584,119530.0,119520.0,0.31638653]
[1759425850126,3.16635748,119530.0,119520.0,0.31638653]
[1759425850633,3.16635748,119530.0,119520.0,0.33895885]
[1759425852036,0.70103748,119530.0,119520.0,0.33895885]
[1759425852238,3.16595748,119530.0,119520.0,0.33895885]
[1759425853137,3.16395748,119530.0,119520.0,0.33895885]
[1759425853435,3.16395748,119530.0,119520.0,0.33781719]
[1759425853637,3.16395748,119530.0,119520.0,0.34010051]
[1759425855342,3.16339748,119530.0,119520.0,0.34010051]
[1759425855539,0.69903748,119530.0,119520.0,0.34010051]
[1759425855738,3.16335748,119530.0,119520.0,0.34010051]
[1759425864353,3.48812022,119530.0,119520.0,0.34010051]
[1759425864551,3.48812022,119530.0,119520.0,0.30686051]
[1759425864750,3.51790908,119530.0,119520.0,0.30686051]
[1759425865055,3.51790908,119530.0,119520.0,0.34686051]
[1759425865747,1.07603191,119530.0,119520.0,0.32428819]
[1759425865944,3.53947191,119530.0,119520.0,0.32428819]
[1759425866749,3.51702908,119530.0,119520.0,0.04228332]
[1759425869755,3.91702908,119530.0,119520.0,0.04228332]
[1759425872155,3.91702908,119530.0,119520.0,0.40308332]
[1759425873657,3.93172798,119530.0,119520.0,0.40308332]
[1759425875855,3.60696524,119530.0,119520.0,0.40308332]
[1759425876059,1.46828798,119530.0,119520.0,0.40308332]
[1759425876261,3.93096798,119530.0,119520.0,0.40308332]
[1759425876654,3.60620524,119530.0,119520.0,0.40308332]
[1759425876861,3.93096798,119530.0,119520.0,0.43488332]
[1759425877961,3.93096798,119530.0,119520.0,0.40308332]
[1759425879865,3.49520634,119530.0,119520.0,0.36308332]
[1759425880056,3.1704436,119530.0,119520.0,0.36308332]
[1759425880363,3.93096798,119530.0,119520.0,0.36308332]
[1759425882362,3.53096798,119530.0,119520.0,0.00228332]
[1759425883468,3.51637353,119530.0,119520.0,0.00228332]
[1759425887163,3.84113627,119530.0,119520.0,0.00228332]
[1759425887363,3.81124296,119530.0,119520.0,0.00228332]
[1759425887765,3.48648022,119530.0,119520.0,0.00228332]
[1759425887970,0.135717,119520.0,119510.0,0.3608]
[1759425888268,0.135717,119520.0,119510.0,0.4808]
[1759425888269,1.01356172,119520.0,119510.0,0.4808]
[1759425888570,1.33832446,119520.0,119510.0,0.4808]
[1759425889370,1.3529195,119520.0,119510.0,0.4808]
[1759425889570,1.02815676,119520.0,119510.0,0.4808]
[1759425889970,0.70339402,119520.0,119510.0,0.4808]
[1759425890163,1.02815676,119520.0,119510.0,0.4808]
[1759425891570,1.3529195,119520.0,119510.0,0.4808]
[1759425893174,1.38281115,119520.0,119510.0,0.4808]
[1759425893569,1.33832339,119520.0,119510.0,0.12]
[1759425894171,1.38281115,119520.0,119510.0,0.12]
[1759425894566,1.33832339,119520.0,119510.0,0.10278098]
[1759425895265,1.33832339,119520.0,119510.0,0.07780623]
[1759425896669,3.14971791,119520.0,119510.0,0.43860623]
[1759425896969,3.79924339,119520.0,119510.0,0.46963623]
[1759425897179,3.14971791,119520.0,119510.0,0.46963623]
[1759425897370,3.47448065,119520.0,119510.0,0.46963623]
[1759425897566,3.47448065,119520.0,119510.0,0.43860623]
[1759425898768,3.79924339,119520.0,119510.0,0.43860623]
[1759425899369,3.47448065,119520.0,119510.0,0.43860623]
[1759425899766,3.47440065,119520.0,119510.0,0.43860623]
[1759425900371,1.93147627,119520.0,119510.0,0.81325897]
[1759425900569,2.61125927,119520.0,119510.0,0.81325897]
[1759425900980,2.69487547,119520.0,119510.0,0.81325897]
[1759425901184,2.71339547,119520.0,119510.0,0.48849623]
[1759425901982,2.71339547,119520.0,119510.0,0.46963623]
[1759425902178,3.03815821,119520.0,119510.0,0.46963623]
[1759425902379,3.36304033,119520.0,119510.0,0.46963623]
[1759425903279,3.36304033,119520.0,119510.0,0.43860623]
[1759425903584,4.13822051,119520.0,119510.0,0.07780623]
[1759425904680,3.81339808,119520.0,119510.0,0.07780623]
[1759425905482,3.81339808,119520.0,119510.0,0.10883623]
[1759425905483,1.35255808,119520.0,119510.0,0.10883623]
[1759425905689,1.35255808,119520.0,119510.0,0.46963623]
[1759425905983,3.81315808,119520.0,119510.0,0.46963623]
[1759425906483,1.35255808,119520.0,119510.0,0.46963623]
[1759425906684,3.81315808,119520.0,119510.0,0.46963623]
[1759425907472,3.81315808,119520.0,119510.0,0.43860623]
[1759425908280,3.81315808,119520.0,119510.0,0.79445866]